bitfinex/quotes_SOLUSD_20241116
["timestamp","ask_amount","ask_price","bid_price","bid_amount"]
[1731790059625,0.5408931,216.08,216.03,8.1472688]
[1731790060008,0.5408931,216.08,215.98,22.4865]
[1731790060233,0.5408931,216.08,216.04,8.1472688]
[1731790062915,0.5408931,216.08,216.03,8.1472688]
[1731790063609,0.5408931,216.08,216.05,8.1472688]
[1731790063811,0.5408931,216.08,216.06,8.1472688]
[1731790064027,0.5408931,216.08,216.07,8.1472688]
[1731790065716,0.5408931,216.08,216.07,28.2727588]
[1731790065931,0.5408931,216.08,216.07,52.26880742]
[1731790066326,0.5408931,216.08,216.07,43.902374]
[1731790066538,0.5408931,216.08,216.07,52.26880742]
[1731790070029,0.5408931,216.08,216.07,23.902374]
[1731790070228,0.5408931,216.08,216.07,32.0496428]
[1731790071533,0.5408931,216.08,216.07,8.1472688]
[1731790071747,0.5408931,216.08,216.01,24.2716]
[1731790071913,0.5408931,216.08,216.02,8.1472688]
[1731790072536,5.1688931,216.08,216.01,8.1472688]
[1731790072918,5.1688931,216.08,216.01,12.71741434]
[1731790073738,17.88630744,216.08,216.0,12.71741434]
[1731790074940,17.88630744,216.08,215.99,20.0]
[1731790074941,12.71741434,216.05,215.99,20.0]
[1731790075312,12.71741434,216.05,215.96,12.71741434]
[1731790077450,12.71741434,216.03,215.96,12.71741434]
[1731790077624,12.71741434,216.02,215.95,20.0]
[1731790078633,17.34661434,216.02,215.95,20.0]
[1731790079032,17.34661434,216.02,215.94,12.71741434]
[1731790080326,4.6289,216.04,215.98,12.71741434]
[1731790080525,22.4289,216.05,215.99,12.71741434]
[1731790080752,12.71741434,216.01,215.94,12.71741434]
[1731790081543,12.71741434,216.01,215.92,12.71741434]
[1731790082222,12.71741434,216.01,215.94,12.71741434]
[1731790082423,12.71741434,216.03,215.95,12.71741434]
[1731790083643,4.6292,216.02,215.95,12.71741434]
[1731790083949,12.71741434,216.03,215.95,12.71741434]
[1731790084131,17.34631434,216.04,215.96,12.71741434]
[1731790084842,12.71741434,216.0,215.93,20.0]
[1731790085025,12.71741434,216.02,215.95,20.0]
[1731790085355,17.34631434,216.04,215.96,12.71741434]
[1731790086619,12.71741434,216.03,215.95,12.71741434]
[1731790088132,12.71741434,216.05,215.98,20.0]
[1731790088337,13.25830744,216.08,216.01,12.71741434]
[1731790088545,17.88630744,216.08,216.01,12.71741434]
[1731790089444,0.5408931,216.08,216.0,20.0]
[1731790089747,13.25830744,216.08,216.01,12.71741434]
[1731790090550,17.88620744,216.08,216.01,12.71741434]
[1731790090847,0.5408931,216.08,216.03,12.71741434]
[1731790091242,0.5408931,216.08,216.04,12.71741434]
[1731790091963,0.5408931,216.08,216.06,12.71741434]
[1731790092333,0.5408931,216.08,216.05,12.71741434]
[1731790092837,0.5408931,216.08,216.06,8.1355324]
[1731790093338,0.5408931,216.08,216.07,8.1355324]
[1731790094354,0.5408931,216.08,216.06,8.1355324]
[1731790094939,0.5408931,216.08,216.05,8.1355324]
[1731790095258,0.5408931,216.08,216.06,20.0]
[1731790097435,0.5408931,216.08,216.0,0.09367462]
[1731790097637,0.5408931,216.08,216.01,8.1355324]
[1731790097850,0.5408931,216.08,216.04,8.1355324]
[1731790099238,0.5408931,216.08,215.99,0.25098]
[1731790099239,0.5408931,216.08,216.06,8.1355324]
[1731790101144,0.5408931,216.08,216.07,28.1355324]
[1731790101664,0.5408931,216.08,216.07,52.0379064]
[1731790102559,0.5408931,216.08,216.07,28.1355324]
[1731790103141,0.5408931,216.08,216.06,28.1355324]
[1731790104156,0.5408931,216.08,216.04,9.1162]
[1731790104157,0.5408931,216.08,216.04,8.1355324]
[1731790104360,0.5408931,216.08,216.07,32.0379064]
[1731790105444,0.5408931,216.08,216.07,52.0379064]
[1731790105952,0.5408931,216.08,216.01,0.25098]
[1731790106257,0.5408931,216.08,216.07,8.1355324]
[1731790108349,0.35287813,216.08,216.07,8.1355324]
[1731790109449,0.35287813,216.08,216.07,51.9124164]
[1731790109650,0.35287813,216.08,216.07,52.25707102]
[1731790110761,0.35287813,216.08,216.07,8.1355324]
[1731790111166,0.35287813,216.08,216.06,8.1355324]
[1731790113449,0.35287813,216.08,216.07,23.776884]
[1731790114044,4.98077813,216.08,216.01,8.1355324]
[1731790115456,4.98077813,216.08,216.02,23.776884]
[1731790117172,8.1355324,216.07,215.99,8.1355324]
[1731790118366,4.98077813,216.08,216.03,23.776884]
[1731790118746,4.98077813,216.08,216.0,8.1355324]
[1731790118747,4.98077813,216.08,216.01,23.776884]
[1731790119662,8.1355324,216.07,216.01,23.776884]
[1731790119848,8.1355324,216.05,216.01,23.776884]
[1731790121751,12.7641324,216.05,216.01,23.776884]
[1731790124373,8.1355324,216.05,216.01,23.776884]
[1731790124560,0.35287813,216.08,216.02,23.776884]
[1731790125068,0.35287813,216.08,216.04,23.776884]
[1731790125448,0.35287813,216.08,216.02,23.776884]
[1731790126569,0.35287813,216.08,216.04,23.776884]
[1731790127662,0.35287813,216.08,216.01,8.1355324]
[1731790127663,0.35287813,216.08,216.02,23.776884]
[1731790128760,0.35287813,216.08,216.04,23.776884]
[1731790130483,0.35287813,216.08,216.02,23.776884]
[1731790132675,0.35287813,216.08,216.03,8.1355324]
[1731790132885,0.35287813,216.08,216.04,23.776884]
[1731790138861,0.35287813,216.08,216.05,8.1355324]
[1731790139057,0.35287813,216.08,216.06,23.776884]
[1731790140277,0.35287813,216.08,216.07,8.1355324]
[1731790140473,0.35287813,216.08,216.07,31.9124164]
[1731790140675,0.35287813,216.08,216.07,23.776884]
[1731790140979,0.35287813,216.08,216.02,25.8002324]
[1731790141183,0.35287813,216.08,216.02,8.1355324]
[1731790142590,0.35287813,216.08,216.03,23.776884]
[1731790143965,0.35287813,216.08,216.06,23.776884]
[1731790146267,0.35287813,216.08,216.06,31.9124164]
[1731790146460,0.35287813,216.08,216.07,8.1355324]
[1731790146684,0.35287813,216.08,216.07,52.13158102]
[1731790149199,0.35287813,216.08,216.07,52.25707102]
[1731790163006,0.35287813,216.08,216.07,23.776884]
[1731790164577,0.35287813,216.08,216.06,23.776884]
[1731790164775,0.35287813,216.08,216.0,18.3149]
[1731790165082,0.35287813,216.08,216.02,8.1355324]
[1731790165484,0.35287813,216.08,216.0,8.1355324]
[1731790166910,0.35287813,216.08,216.01,43.776884]
[1731790167498,8.1355324,216.07,216.02,0.12549]
[1731790167900,8.1355324,216.07,216.01,20.0]
[1731790170184,8.1355324,216.07,216.02,0.12549]
[1731790170515,0.35287813,216.08,216.02,23.902374]
[1731790171804,0.35287813,216.08,216.02,32.0379064]
[1731790172392,0.35287813,216.08,216.02,23.902374]
[1731790173620,0.35287813,216.08,216.04,32.0379064]
[1731790173780,0.35287813,216.08,216.07,31.9124164]
[1731790174107,0.35287813,216.08,216.07,23.776884]
[1731790174702,0.35287813,216.08,216.06,23.902374]
[1731790175098,0.35287813,216.08,216.07,32.0379064]
[1731790175307,0.35287813,216.08,216.07,52.25707102]
[1731790177286,0.35287813,216.08,216.07,43.902374]
[1731790177536,0.35287813,216.08,216.07,52.0379064]
[1731790184809,0.35287813,216.08,216.07,23.902374]
[1731790188090,0.35287813,216.08,216.07,52.25707102]
[1731790188493,0.35287813,216.08,216.07,52.1633964]
[1731790188896,0.35287813,216.08,216.07,32.0379064]
[1731790190616,0.35287813,216.08,216.07,52.0379064]
[1731790191124,0.35287813,216.08,216.07,52.25707102]
[1731790198009,0.35287813,216.08,216.07,44.12153862]
[1731790198221,0.35287813,216.08,216.07,52.25707102]
[1731790198396,0.35287813,216.08,216.07,52.0379064]
[1731790204005,0.30654966,216.08,216.07,52.0379064]
[1731790205416,0.30654966,216.08,216.07,52.25707102]
[1731790209520,0.30654966,216.08,216.07,28.1355324]
[1731790211029,0.30654966,216.08,216.07,52.0379064]
[1731790214821,0.30654966,216.08,216.07,32.0379064]
[1731790215919,0.30654966,216.08,216.07,52.25707102]
[1731790218219,7.23238116,216.2,216.1,17.82806462]
[1731790218530,7.23238116,216.22,216.19,8.1355324]
[1731790219118,7.23238116,216.22,216.18,8.1355324]
[1731790219822,7.23238116,216.23,216.18,8.1355324]
[1731790220204,7.23238116,216.22,216.18,0.12549]
[1731790220404,7.23238116,216.23,216.18,0.12549]
[1731790220620,7.23238116,216.22,216.18,0.12549]
[1731790220804,7.23238116,216.23,216.18,32.0379064]
[1731790222425,7.23238116,216.24,216.18,32.0379064]
[1731790223324,7.23238116,216.23,216.18,32.0379064]
[1731790223514,7.23238116,216.24,216.18,32.0379064]
[1731790224131,19.99241356,216.24,216.18,0.12549]
[1731790224908,8.1355324,216.23,216.12,20.21916462]
[1731790225109,8.1355324,216.21,216.13,8.1355324]
[1731790225414,8.1355324,216.21,216.14,8.1355324]
[1731790225625,15.36791356,216.22,216.15,8.1355324]
[1731790226339,7.23238116,216.22,216.16,8.1355324]
[1731790226540,7.23238116,216.23,216.17,8.1355324]
[1731790226734,7.23238116,216.23,216.18,0.12549]
[1731790227044,7.23238116,216.24,216.18,0.12549]
[1731790227633,11.85688116,216.24,216.18,0.12549]
[1731790228247,7.23238116,216.24,216.18,0.12549]
[1731790228420,7.23238116,216.24,216.18,23.902374]
[1731790229944,15.36791356,216.25,216.18,32.0379064]
[1731790230142,7.23238116,216.25,216.18,32.0379064]
[1731790230448,19.99201356,216.26,216.18,32.0379064]
[1731790230643,19.99201356,216.26,216.18,23.902374]
[1731790230946,8.1355324,216.24,216.18,23.902374]
[1731790231541,12.7597324,216.25,216.18,23.902374]
[1731790231745,8.1355324,216.24,216.18,23.902374]
[1731790232442,8.1355324,216.24,216.16,43.902374]
[1731790233441,8.1355324,216.22,216.14,8.1355324]
[1731790234533,4.6251,216.21,216.15,0.12549]
[1731790235528,4.6251,216.21,216.14,0.12549]
[1731790236230,8.1355324,216.2,216.11,0.12549]
[1731790236535,8.1355324,216.16,216.08,15.1722324]
[1731790236847,8.1355324,216.16,216.05,17.7955]
[1731790237152,8.1355324,216.16,216.07,8.1355324]
[1731790237356,8.1355324,216.12,216.03,7.0367]
[1731790237525,8.1355324,216.09,216.01,8.1355324]
[1731790237727,8.1355324,216.09,216.02,8.22920702]
[1731790238031,8.1355324,216.1,216.03,8.1355324]
[1731790238337,8.1355324,216.11,216.03,8.1355324]
[1731790238539,8.1355324,216.11,216.04,8.2610224]
[1731790238739,12.7627324,216.11,216.04,8.2610224]
[1731790238939,18.89788116,216.16,216.05,8.1355324]
[1731790239126,8.1355324,216.13,216.05,8.1355324]
[1731790240125,4.627,216.12,216.05,8.1355324]
[1731790240342,4.627,216.12,216.06,8.1355324]
[1731790240642,8.1355324,216.17,216.1,8.1355324]
[1731790240821,12.7614324,216.18,216.1,8.1355324]
[1731790241027,8.1355324,216.17,216.1,8.1355324]
[1731790241229,8.1355324,216.16,216.08,32.0379064]
[1731790241439,8.1355324,216.15,216.08,32.0379064]
[1731790241635,8.1355324,216.16,216.08,32.0379064]
[1731790241851,12.7616324,216.17,216.1,0.12549]
[1731790242054,8.1355324,216.18,216.1,32.0379064]
[1731790242558,8.1355324,216.2,216.12,32.1633964]
[1731790242755,8.1355324,216.2,216.14,0.12549]
[1731790243130,15.36791356,216.2,216.14,0.12549]
[1731790243340,19.99311356,216.21,216.14,0.12549]
[1731790244162,15.36791356,216.22,216.14,8.2610224]
[1731790244447,19.99271356,216.23,216.15,8.1355324]
[1731790244627,8.1355324,216.22,216.14,8.2610224]
[1731790245243,8.1355324,216.21,216.15,8.1355324]
[1731790245449,11.85718116,216.23,216.13,43.99604862]
[1731790245450,8.1355324,216.2,216.13,43.99604862]
[1731790245658,8.1355324,216.2,216.05,0.2]
[1731790245659,8.1355324,216.2,216.04,32.5421296]
[1731790245830,8.1355324,216.17,216.1,8.1355324]
[1731790246031,8.1355324,216.17,216.09,26.6911324]
[1731790246249,8.1355324,216.18,216.1,8.1355324]
[1731790247254,4.6259,216.17,216.1,8.1355324]
[1731790249048,8.1355324,216.18,216.11,8.2610224]
[1731790249241,8.1355324,216.19,216.11,8.2610224]
[1731790249726,7.23238116,216.21,216.14,8.1355324]
[1731790249727,11.85758116,216.21,216.14,8.1355324]
[1731790249934,4.6252,216.21,216.14,8.1355324]
[1731790251559,4.6252,216.21,216.13,0.12549]
[1731790251560,8.1355324,216.2,216.13,0.12549]
[1731790252953,12.7607324,216.21,216.13,8.1355324]
[1731790257261,8.1355324,216.19,216.13,8.1355324]
[1731790257652,8.1355324,216.19,216.11,32.13158102]
[1731790258350,8.1355324,216.19,216.13,0.12549]
[1731790258936,8.1355324,216.2,216.13,32.0379064]
[1731790262152,15.36791356,216.22,216.15,8.2610224]
[1731790262362,33.55412464,216.24,216.15,8.2610224]
[1731790262363,19.99251356,216.24,216.16,17.87339]
[1731790263047,19.99251356,216.24,216.17,8.1355324]
[1731790263263,12.7601324,216.24,216.17,8.1355324]
[1731790263650,8.1355324,216.24,216.18,0.12549]
[1731790265272,8.1355324,216.24,216.17,0.12549]
[1731790265469,15.36791356,216.24,216.17,0.12549]
[1731790265879,8.1355324,216.24,216.17,0.12549]
[1731790266880,12.7599324,216.24,216.17,0.12549]
[1731790267251,19.99231356,216.24,216.17,0.12549]
[1731790267753,8.1355324,216.22,216.16,17.7479]
[1731790268474,12.7604324,216.22,216.16,17.7479]
[1731790268879,8.1355324,216.18,216.16,17.7479]
[1731790269087,8.1355324,216.18,216.1,32.1544324]
[1731790270168,8.1355324,216.18,216.11,8.2610224]
[1731790270391,12.7612324,216.18,216.11,8.2610224]
[1731790270880,4.6257,216.18,216.11,0.12549]
[1731790271176,8.1355324,216.16,216.11,0.12549]
[1731790272355,12.7617324,216.16,216.1,24.0189]
[1731790273494,8.1355324,216.14,216.1,24.0189]
[1731790273661,8.1355324,216.12,216.05,25.0449324]
[1731790274781,8.1355324,216.11,216.05,16.9094]
[1731790274958,8.1355324,216.09,216.05,16.9094]
[1731790275162,8.1355324,216.1,216.05,16.9094]
[1731790275557,8.1355324,216.09,216.05,16.9094]
[1731790276186,8.1355324,216.1,216.05,16.9094]
[1731790276762,12.7630324,216.1,216.05,16.9094]
[1731790277679,8.1355324,216.08,216.05,16.9094]
[1731790277881,8.1355324,216.06,215.99,16.9094]
[1731790278089,8.1355324,216.03,215.99,16.9094]
[1731790278382,8.1355324,216.02,215.99,16.9094]
[1731790278789,8.1355324,216.02,215.94,0.09367462]
[1731790278962,8.1355324,216.02,215.95,8.1355324]
[1731790279473,8.1355324,216.01,215.94,8.22920702]
[1731790279679,8.1355324,216.02,215.95,8.1355324]
[1731790280369,12.7647324,216.02,215.95,8.1355324]
[1731790280573,8.1355324,216.01,215.94,0.09367462]
[1731790280759,8.1355324,216.01,215.95,0.12549]
[1731790281082,12.7647324,216.02,215.95,8.3865124]
[1731790281290,4.6292,216.02,215.95,8.3865124]
[1731790281468,12.7647324,216.02,215.95,8.3865124]
[1731790282362,4.6279,216.08,215.97,8.3865124]
[1731790282572,9.04733951,216.05,215.97,9.29831951]
[1731790282878,9.04733951,216.06,215.99,9.04733951]
[1731790283085,9.04733951,216.06,216.0,0.12549]
[1731790283676,9.04733951,216.07,216.0,0.12549]
[1731790284267,13.67553951,216.07,216.0,0.12549]
[1731790284467,9.04733951,216.1,216.02,26.28592951]
[1731790284672,9.04733951,216.1,216.03,9.04733951]
[1731790284985,9.04733951,216.13,216.06,9.04733951]
[1731790285160,9.04733951,216.13,216.06,0.12549]
[1731790285971,6.7184,216.19,216.08,0.21916462]
[1731790286175,161.0,216.22,216.04,0.09367462]
[1731790286176,9.04733951,216.17,216.1,0.12549]
[1731790286480,9.04733951,216.16,216.1,0.12549]
[1731790287095,9.04733951,216.15,216.09,0.12549]
[1731790287266,13.67353951,216.16,216.09,0.12549]
[1731790289266,9.04733951,216.14,216.03,20.12549]
[1731790289475,9.04733951,216.13,216.06,0.25098]
[1731790289980,9.04733951,216.14,216.06,9.29831951]
[1731790290169,9.04733951,216.14,216.06,0.25098]
[1731790290374,13.67403951,216.14,216.08,0.12549]
[1731790290791,13.67403951,216.14,216.04,0.25098]
[1731790291088,13.67403951,216.14,216.07,0.12549]
[1731790291982,4.6267,216.14,216.08,9.04733951]
[1731790295379,9.04733951,216.17,216.08,9.04733951]
[1731790296486,4.6262,216.16,216.08,9.04733951]
[1731790296699,4.6253,216.2,216.09,0.21916462]
[1731790296864,9.04733951,216.19,216.11,0.12549]
[1731790297267,9.04733951,216.19,216.12,9.04733951]
[1731790297878,13.67293951,216.19,216.12,9.04733951]
[1731790304878,9.04733951,216.2,216.12,9.04733951]
[1731790305080,4.6249,216.22,216.14,9.04733951]
[1731790305280,13.67223951,216.22,216.14,9.04733951]
[1731790305901,13.67223951,216.22,216.15,9.04733951]
[1731790309180,4.6249,216.22,216.16,9.04733951]
[1731790309784,4.6249,216.22,216.15,9.04733951]
[1731790310306,9.04733951,216.22,216.16,0.25098]
[1731790310502,4.6247,216.23,216.17,23.8454]
[1731790310797,4.6247,216.23,216.17,32.89273951]
[1731790311401,4.6244,216.24,216.17,32.89273951]
[1731790311578,13.67153951,216.25,216.18,0.34465462]
[1731790312702,9.04733951,216.23,216.17,23.8454]
[1731790313100,9.04733951,216.21,216.17,23.8454]
[1731790313600,4.6253,216.2,216.17,23.8454]
[1731790313987,9.04733951,216.19,216.13,16.9727]
[1731790314291,9.04733951,216.17,216.13,16.9727]
[1731790315089,9.04733951,216.15,216.13,16.9727]
[1731790315289,9.04733951,216.15,216.08,16.9727]
[1731790315491,9.04733951,216.1,216.08,16.9727]
[1731790315691,9.04733951,216.09,216.08,16.9727]
[1731790315908,9.04733951,216.09,216.05,6.8727]
[1731790316590,9.04733951,216.08,216.05,6.8727]
[1731790318092,9.04733951,216.08,216.03,16.9727]
[1731790318093,13.67533951,216.08,216.03,16.9727]
[1731790320283,9.04733951,216.06,216.03,16.9727]
[1731790320593,4.6266,216.14,216.03,16.9727]
[1731790320789,9.04733951,216.13,216.05,9.04733951]
[1731790321609,9.04733951,216.13,216.06,0.12549]
[1731790321790,13.67423951,216.13,216.06,0.12549]
[1731790322417,9.04733951,216.09,216.03,16.9727]
[1731790322711,9.04733951,216.07,216.03,16.9727]
[1731790322891,4.6269,216.13,216.03,16.9727]
[1731790322892,9.04733951,216.09,216.03,16.9727]
[1731790323094,9.04733951,216.08,216.03,16.9727]
[1731790323485,9.04733951,216.09,216.03,16.9727]
[1731790323890,13.67503951,216.09,216.03,16.9727]
[1731790325115,9.04733951,216.07,216.03,16.9727]
[1731790326222,13.67543951,216.07,216.03,16.9727]
[1731790326623,4.6266,216.14,216.03,16.9727]
[1731790326802,9.04733951,216.08,216.03,16.9727]
[1731790327007,9.04733951,216.06,216.03,16.9727]
[1731790327308,9.04733951,216.06,216.0,6.8727]
[1731790328115,13.67573951,216.06,216.0,6.8727]
[1731790328420,9.04733951,216.04,216.0,6.8727]
[1731790328726,9.04733951,216.04,215.98,18.6104]
[1731790329230,9.04733951,216.02,215.98,18.6104]
[1731790330323,9.04733951,216.0,215.94,26.082]
[1731790330898,4.6294,216.01,215.94,26.082]
[1731790331118,9.05197605,215.99,215.94,26.082]
[1731790331433,13.68137605,216.01,215.94,26.082]
[1731790331723,9.05197605,216.0,215.94,26.082]
[1731790332423,13.68157605,216.0,215.94,26.082]
[1731790332726,4.6279,216.08,215.98,9.05197605]
[1731790332899,9.05197605,216.07,215.99,9.05197605]
[1731790333101,9.05197605,216.04,215.95,0.12549]
[1731790333411,9.05197605,216.03,215.95,9.05197605]
[1731790334125,9.05197605,216.01,215.94,26.082]
[1731790334328,13.68147605,216.01,215.94,26.082]
[1731790335699,9.05197605,216.0,215.94,26.082]
[1731790335896,9.05197605,215.99,215.94,26.082]
[1731790336725,9.05197605,215.97,215.94,26.082]
[1731790337104,9.05197605,215.96,215.89,27.78786605]
[1731790337302,9.05197605,215.97,215.89,27.78786605]
[1731790337803,13.68227605,215.97,215.9,9.05197605]
[1731790338120,0.2,216.03,215.92,9.05197605]
[1731790338121,9.05197605,216.0,215.92,9.05197605]
[1731790338422,9.05197605,215.99,215.92,9.05197605]
[1731790339132,13.68197605,215.99,215.92,9.05197605]
[1731790339329,9.05197605,215.97,215.9,9.05197605]
[1731790340015,9.05376038,215.97,215.9,9.05376038]
[1731790340906,4.63,215.99,215.91,9.05376038]
[1731790341113,13.68396038,215.98,215.91,9.05376038]
[1731790342030,4.6302,215.98,215.91,9.05376038]
[1731790342608,4.6292,216.02,215.94,9.05376038]
[1731790342810,9.05376038,216.01,215.94,9.05376038]
[1731790343136,13.68296038,216.02,215.95,9.05376038]
[1731790343632,4.6292,216.02,215.96,9.05376038]
[1731790343831,13.68296038,216.02,215.95,9.05376038]
[1731790344431,13.68296038,216.02,215.94,9.05376038]
[1731790344936,9.05376038,216.01,215.94,9.05376038]
[1731790345137,9.05376038,215.98,215.89,18.6104]
[1731790345333,9.05376038,215.98,215.91,9.05376038]
[1731790345536,9.05376038,215.95,215.89,18.6104]
[1731790346112,13.68456038,215.95,215.89,18.6104]
[1731790346521,9.05376038,215.94,215.89,18.6104]
[1731790347042,4.6308,215.95,215.89,18.6104]
[1731790347043,9.05376038,215.93,215.89,18.6104]
[1731790347537,9.05376038,215.92,215.85,9.05376038]
[1731790347722,9.05376038,215.91,215.84,17.7092]
[1731790347923,9.05376038,215.9,215.84,17.7092]
[1731790348138,9.05376038,215.88,215.84,17.7092]
[1731790348340,9.05376038,215.89,215.84,17.7092]
[1731790348839,14.15708367,215.89,215.84,17.7092]
[1731790349942,14.15708367,215.86,215.79,31.86628367]
[1731790350169,14.15708367,215.83,215.79,17.7092]
[1731790350639,0.1,215.91,215.79,17.7092]
[1731790350640,14.15708367,215.81,215.79,17.7092]
[1731790351025,14.15708367,215.81,215.74,31.86628367]
[1731790351219,14.15708367,215.81,215.74,17.7092]
[1731790351836,4.6339,215.8,215.74,17.7092]
[1731790352015,14.15708367,215.81,215.74,17.7092]
[1731790352222,14.15708367,215.82,215.74,31.86628367]
[1731790352544,14.15708367,215.82,215.74,17.7092]
[1731790352853,14.15708367,215.82,215.75,14.15708367]
[1731790353022,14.15708367,215.82,215.74,31.86628367]
[1731790354142,14.15708367,215.8,215.7,20.0]
[1731790354347,14.15708367,215.8,215.69,17.7092]
[1731790354348,14.15708367,215.8,215.71,14.15708367]
[1731790355545,18.79098367,215.8,215.71,14.15708367]
[1731790356235,14.15708367,215.8,215.72,0.25098]
[1731790356438,18.79068367,215.82,215.73,14.15708367]
[1731790359331,4.6332,215.84,215.78,14.15708367]
[1731790359650,14.15708367,215.85,215.74,0.09367462]
[1731790359833,14.15708367,215.85,215.77,14.15708367]
[1731790360544,4.6319,215.89,215.79,14.28257367]
[1731790360740,14.15708367,215.81,215.64,17.7092]
[1731790360947,14.15708367,215.76,215.68,14.15708367]
[1731790362269,4.6349,215.75,215.68,14.15708367]
[1731790362641,14.15708367,215.74,215.66,14.15708367]
[1731790363267,14.15708367,215.72,215.64,31.86628367]
[1731790363433,14.15708367,215.7,215.64,17.7092]
[1731790363636,14.15708367,215.7,215.62,14.15708367]
[1731790364238,4.6362,215.69,215.62,14.15708367]
[1731790365264,14.15708367,215.7,215.62,14.15708367]
[1731790365450,18.79318367,215.7,215.62,14.15708367]
[1731790366264,14.15708367,215.68,215.62,14.15708367]
[1731790366765,14.15708367,215.68,215.61,0.12549]
[1731790367344,18.79368367,215.68,215.61,0.12549]
[1731790367668,14.15708367,215.68,215.61,14.15708367]
[1731790367836,14.15708367,215.69,215.62,14.28257367]
[1731790368867,14.15708367,215.69,215.61,14.15708367]
[1731790369056,4.6364,215.68,215.62,0.12549]
[1731790369448,4.6364,215.68,215.61,14.15708367]
[1731790369975,4.6364,215.68,215.62,0.12549]
[1731790370351,4.6364,215.68,215.58,18.1733]
[1731790370352,14.15708367,215.66,215.58,18.1733]
[1731790370657,14.15708367,215.59,215.53,0.5408931]
[1731790371750,14.15708367,215.59,215.54,0.12549]
[1731790371970,14.15708367,215.61,215.54,0.25098]
[1731790374058,4.6378,215.62,215.55,14.15708367]
[1731790374248,4.6378,215.62,215.56,0.12549]
[1731790381378,4.6375,215.64,215.61,3.24]
[1731790381678,4.6366,215.68,215.62,14.28257367]
[1731790382063,11.6889,215.73,215.65,14.15708367]
[1731790382064,14.15708367,215.73,215.65,14.15708367]
[1731790382267,14.15708367,215.74,215.67,0.12549]
[1731790382458,18.79198367,215.75,215.67,14.28257367]
[1731790382664,32.55291679,215.82,215.7,14.15708367]
[1731790382665,14.15708367,215.78,215.7,14.15708367]
[1731790382976,14.15708367,215.77,215.71,0.25098]
[1731790383670,18.79148367,215.78,215.71,0.25098]
[1731790384274,18.79078367,215.81,215.74,0.25098]
[1731790384979,18.79078367,215.81,215.74,14.40806367]
[1731790386376,4.6332,215.83,215.77,14.15708367]
[1731790386583,4.6332,215.83,215.78,14.15708367]
[1731790387381,4.6332,215.83,215.77,14.15708367]
[1731790390167,4.6332,215.83,215.76,14.15708367]
[1731790390575,4.6332,215.83,215.77,0.12549]
[1731790391391,14.15708367,215.83,215.77,0.12549]
[1731790391691,14.15708367,215.81,215.75,0.12549]
[1731790391863,14.15708367,215.82,215.75,0.12549]
[1731790392569,18.79058367,215.82,215.75,14.28257367]
[1731790392977,4.6335,215.82,215.75,14.28257367]
[1731790396566,4.6332,215.84,215.78,14.15708367]
[1731790396768,4.6329,215.85,215.79,0.12549]
[1731790397873,14.15708367,215.83,215.78,17.9266]
[1731790399971,18.79048367,215.83,215.78,17.9266]
[1731790400301,4.633,215.85,215.78,32.08368367]
[1731790400670,18.78968367,215.87,215.79,14.40806367]
[1731790400994,18.78968367,215.87,215.81,0.12549]
[1731790401164,160.9,215.9,215.82,14.15708367]
[1731790401165,14.15708367,215.9,215.82,14.15708367]
[1731790402094,4.6319,215.89,215.82,14.15708367]
[1731790403493,14.15708367,215.89,215.82,14.15708367]
[1731790404389,14.15708367,215.89,215.81,14.15708367]
[1731790404696,14.15708367,215.84,215.78,17.9266]
[1731790404890,14.15708367,215.83,215.78,17.9266]
[1731790405196,23.876884,215.91,215.78,17.9266]
[1731790405197,14.15708367,215.81,215.78,17.9266]
[1731790405375,14.15708367,215.81,215.73,31.68978367]
[1731790405576,14.15708367,215.8,215.73,17.5327]
[1731790406882,18.79118367,215.8,215.74,0.25098]
[1731790408089,14.15708367,215.78,215.73,17.5327]
[1731790408708,14.15708367,215.79,215.73,17.5327]
[1731790409207,4.6343,215.78,215.73,17.5327]
[1731790409879,14.15708367,215.79,215.73,17.5327]
[1731790410082,14.15708367,215.82,215.74,14.15708367]
[1731790410702,14.15708367,215.81,215.74,14.15708367]
[1731790410891,18.78988367,215.85,215.77,14.15708367]
[1731790413085,14.15708367,215.84,215.77,14.15708367]
[1731790414513,14.15708367,215.84,215.73,17.5327]
[1731790414514,14.15708367,215.81,215.74,0.12549]
[1731790416180,4.6339,215.8,215.74,0.12549]
[1731790417222,14.15708367,215.79,215.73,17.5327]
[1731790418190,18.79138367,215.79,215.73,17.5327]
[1731790420802,4.633,215.84,215.77,14.15708367]
[1731790421008,14.15708367,215.85,215.78,0.12549]
[1731790421326,14.15708367,215.87,215.8,6.90699]
[1731790422193,14.15708367,215.89,215.82,17.7067]
[1731790422514,14.15708367,215.89,215.82,31.86378367]